{"text_format":"3","workbook":"xlsx","n_sheets":4,"sheets":["Riepilogo","Attività","Passività","Categorie"],"not_rendered":{"defined_names":10},"read":"whole","date_system":"1900"}

{"sheet":"Riepilogo","index":0,"n_rows":12,"n_cols":4,"rows_kept":12}
[null,"Stato patrimoniale"]
[null,null,{"$f":"\"Esercizio \"&YEAR(TODAY())-1","v":"Esercizio 2016"},{"$f":"\"Esercizio \"&YEAR(TODAY())","v":"Esercizio 2017"}]
[null,"Tipo di attività","Anno precedente","Anno corrente"]
[null,"Attivo circolante",{"$f":"SUMIFS(Attività[Anno precedente],Attività[Tipo di attività],Dashboard[[#This Row],[Tipo di attività]])+SUMIFS(Passività[Anno precedente],Passività[Tipo di passività],Dashboard[[#This Row],[Tipo di attività]])","v":600},{"$f":"SUMIFS(Attività[Anno corrente],Attività[Tipo di attività],Dashboard[[#This Row],[Tipo di attività]])+SUMIFS(Passività[Anno corrente],Passività[Tipo di passività],Dashboard[[#This Row],[Tipo di attività]])","v":600}]
[null,"Immobilizzazioni",{"$f":"SUMIFS(Attività[Anno precedente],Attività[Tipo di attività],Dashboard[[#This Row],[Tipo di attività]])+SUMIFS(Passività[Anno precedente],Passività[Tipo di passività],Dashboard[[#This Row],[Tipo di attività]])","v":{"v":-100,"d":"-100 "}},{"$f":"SUMIFS(Attività[Anno corrente],Attività[Tipo di attività],Dashboard[[#This Row],[Tipo di attività]])+SUMIFS(Passività[Anno corrente],Passività[Tipo di passività],Dashboard[[#This Row],[Tipo di attività]])","v":{"v":-85,"d":"-85 "}}]
[null,"Altre attività",{"$f":"SUMIFS(Attività[Anno precedente],Attività[Tipo di attività],Dashboard[[#This Row],[Tipo di attività]])+SUMIFS(Passività[Anno precedente],Passività[Tipo di passività],Dashboard[[#This Row],[Tipo di attività]])","v":0},{"$f":"SUMIFS(Attività[Anno corrente],Attività[Tipo di attività],Dashboard[[#This Row],[Tipo di attività]])+SUMIFS(Passività[Anno corrente],Passività[Tipo di passività],Dashboard[[#This Row],[Tipo di attività]])","v":0}]
[null,"Passività correnti",{"$f":"SUMIFS(Attività[Anno precedente],Attività[Tipo di attività],Dashboard[[#This Row],[Tipo di attività]])+SUMIFS(Passività[Anno precedente],Passività[Tipo di passività],Dashboard[[#This Row],[Tipo di attività]])","v":500},{"$f":"SUMIFS(Attività[Anno corrente],Attività[Tipo di attività],Dashboard[[#This Row],[Tipo di attività]])+SUMIFS(Passività[Anno corrente],Passività[Tipo di passività],Dashboard[[#This Row],[Tipo di attività]])","v":350}]
[null,"Passività a lungo termine",{"$f":"SUMIFS(Attività[Anno precedente],Attività[Tipo di attività],Dashboard[[#This Row],[Tipo di attività]])+SUMIFS(Passività[Anno precedente],Passività[Tipo di passività],Dashboard[[#This Row],[Tipo di attività]])","v":0},{"$f":"SUMIFS(Attività[Anno corrente],Attività[Tipo di attività],Dashboard[[#This Row],[Tipo di attività]])+SUMIFS(Passività[Anno corrente],Passività[Tipo di passività],Dashboard[[#This Row],[Tipo di attività]])","v":0}]
[null,"Patrimonio netto",{"$f":"SUMIFS(Attività[Anno precedente],Attività[Tipo di attività],Dashboard[[#This Row],[Tipo di attività]])+SUMIFS(Passività[Anno precedente],Passività[Tipo di passività],Dashboard[[#This Row],[Tipo di attività]])","v":0},{"$f":"SUMIFS(Attività[Anno corrente],Attività[Tipo di attività],Dashboard[[#This Row],[Tipo di attività]])+SUMIFS(Passività[Anno corrente],Passività[Tipo di passività],Dashboard[[#This Row],[Tipo di attività]])","v":350}]
[null,"Totale attività",{"$f":"Attività[[#Totals],[Anno precedente]]","v":500},{"$f":"Attività[[#Totals],[Anno corrente]]","v":515}]
[null,"Totale passività e patrimonio netto",{"$f":"Passività[[#Totals],[Anno precedente]]","v":500},{"$f":"Passività[[#Totals],[Anno corrente]]","v":700}]
[null,"Saldo",{"$f":"C10-C11","v":0},{"$f":"D10-D11","v":{"v":-185,"d":"-185 "}}]

{"sheet":"Attività","index":1,"n_rows":14,"n_cols":5,"rows_kept":14}
[null,"Attività"]
[{"$nulls":3},{"$f":"ANNO_FISCALE","v":"Esercizio 2016"},{"$f":"ANNO_FISCALE_2","v":"Esercizio 2017"}]
[null,"Tipo di attività","Descrizione","Anno precedente","Anno corrente"]
[null,"Attivo circolante","Liquidità",600,600]
[null,"Attivo circolante","Investimenti"]
[null,"Attivo circolante","Inventari"]
[null,"Attivo circolante","Crediti verso i clienti"]
[null,"Attivo circolante","Risconti attivi"]
[null,"Immobilizzazioni","Proprietà e attrezzature"]
[null,"Immobilizzazioni","Migliorie beni in locazione"]
[null,"Immobilizzazioni","Capitale netto e altri investimenti"]
[null,"Immobilizzazioni","Meno fondo di ammortamento (valore negativo)",{"v":-100,"d":"-100 "},{"v":-85,"d":"-85 "}]
[null,"Altre attività","Beneficenza"]
[null,"Totale attività",null,{"$f":"SUBTOTAL(109,Attività[Anno precedente])","v":500},{"$f":"SUBTOTAL(109,Attività[Anno corrente])","v":515}]

{"sheet":"Passività","index":2,"n_rows":12,"n_cols":5,"rows_kept":12}
[null,"Passività"]
[{"$nulls":3},{"$f":"ANNO_FISCALE","v":"Esercizio 2016"},{"$f":"ANNO_FISCALE_2","v":"Esercizio 2017"}]
[null,"Tipo di passività","Descrizione","Anno precedente","Anno corrente"]
[null,"Passività correnti","Debiti verso fornitori",null,350]
[null,"Passività correnti","Retribuzioni accantonate"]
[null,"Passività correnti","Compensazione accantonata",500]
[null,"Passività correnti","Debiti tributari"]
[null,"Passività correnti","Risconti passivi"]
[null,"Passività a lungo termine","Mutuo ipotecario"]
[null,"Patrimonio netto","Capitale di investimento",null,350]
[null,"Patrimonio netto","Riserva di utili maturata"]
[null,"Totale passività e patrimonio netto",null,{"$f":"SUBTOTAL(109,Passività[Anno precedente])","v":500},{"$f":"SUBTOTAL(109,Passività[Anno corrente])","v":700}]

{"sheet":"Categorie","index":3,"n_rows":9,"n_cols":2,"rows_kept":9}
[null,"Categorie"]
[]
[null,"Categorie"]
[null,"Attivo circolante"]
[null,"Immobilizzazioni"]
[null,"Altre attività"]
[null,"Passività correnti"]
[null,"Passività a lungo termine"]
[null,"Patrimonio netto"]